[Event "BLR-ch U20 Boys 2021"]
[Site "Minsk"]
[Date "2021.04.20"]
[Round "2.2"]
[White "Runets, Ivan"]
[Black "Siniauski, Artsiom"]
[Result "0-1"]
[ECO "E16"]
[WhiteElo "2257"]
[BlackElo "2277"]
[Annotator "RC"]
[PlyCount "104"]
[EventDate "2021.04.20"]
[EventType "tourn"]
[EventCountry "BLR"]
[SourceTitle "playchess.com"]
[Source "ChessBase"]
[SourceQuality "1"]
[TimeControl "40/5400+30:1800+30"]

1. d4 {[%emt 0:01:17]} Nf6 {[%emt 0:00:00]} 2. c4 {[%emt 0:00:13]} e6 {[%emt 0:00:00]} 3. Nf3 {[%emt 0:01:23]} b6 {[%emt 0:00:25]} 4. g3 {[%emt 0:00:45]} Bb4+ {[%emt 0:00:40]} 5. Bd2 {[%emt 0:00:50]} Be7 {[%emt 0:00:28]} 6. Nc3 {[%emt 0:00:41]} c6 {[%emt 0:00:59]} 7. Bf4 {[%emt 0:08:06]} d5 {[%emt 0:01:24]} 8. Bg2 {[%emt 0:02:41]} O-O {[%emt 0:01:21]} 9. Nd2 {[%emt 0:06:44]} Bb7 {[%emt 0:07:04]} 10. O-O {[%emt 0:00:43]} Nbd7 {[%emt 0:05:34]} 11. e4 {[%emt 0:01:31]} dxc4 {[%emt 0:04:07]} 12. a4 {[%emt 0:00:08]} b5 {[%emt 0:16:49]} 13. axb5 {[%emt 0:07:48]} cxb5 {[%emt 0:00:46]} 14. Nxb5 {[%emt 0:00:11]} Nb6 {[%emt 0:02:08]} 15. Be3 {[%emt 0:07:35]} Bb4 {[%emt 0:04:37]} 16. Nc3 {[%emt 0:10:46]} a5 {[%emt 0:02:33]} 17. g4 {[%emt 0:05:56]} Nfd7 {[%emt 0:07:09]} 18. Qe2 {[%emt 0:04:50]} f5 {[%emt 0:06:48]} 19. f3 {[%emt 0:08:26]} f4 {[%emt 0:05:23]} 20. Bf2 {[%emt 0:01:37]} e5 {[%emt 0:00:24]} 21. Rfd1 {[%emt 0:00:32]} Qf6 {[%emt 0:03:44]} 22. Ndb1 {[%emt 0:14:53]} Rfd8 {[%emt 0:09:48]} 23. Na3 {[%emt 0:00:54]} exd4 {[%emt 0:01:30]} 24. Bxd4 {[%emt 0:00:22]} Bc5 {[%emt 0:00:05]} 25. Nab5 {[%emt 0:04:38]} Bxd4+ {[%emt 0:01:19]} 26. Rxd4 {[%emt 0:00:07]} Ne5 {[%emt 0:01:43]} 27. Rxd8+ {[%emt 0:00:21]} Qxd8 {[%emt 0:00:39]} 28. Rd1 {[%emt 0:00:22]} Qe7 {[%emt 0:00:34]} 29. Qf2 {[%emt 0:00:29]} Nbd7 {[%emt 0:00:57]} 30. Nd6 {[%emt 0:04:43]} Nd3 {[%emt 0:02:24]} 31. Qd4 {[%emt 0:03:43]} N7e5 {[%emt 0:00:34]} 32. Nxc4 {[%emt 0:00:46]} Rd8 {[%emt 0:01:57]} 33. Nd5 {[%emt 0:00:17]} Bxd5 {[%emt 0:00:21]} 34. Nxe5 {[%emt 0:00:31]} Bb3 {[%emt 0:02:32]} 35. Nc6 {[%emt 0:01:26]} Rxd4 {[%emt 0:00:11]} 36. Nxe7+ {[%emt 0:00:03]} Kf7 {[%emt 0:00:33]} 37. Nf5 {[%emt 0:00:56]} Bxd1 {[%emt 0:00:07]} 38. Nxd4 {[%emt 0:00:03]} Nxb2 {[%emt 0:00:05]} 39. Nb5 {[%emt 0:01:14]} a4 {[%emt 0:00:55]} 40. Kf2 {[%emt 0:00:00]} Nd3+ {[%emt 0:00:00]} 41. Kg1 {[%emt 0:00:42]} Kf6 {[%emt 0:04:39]} 42. h4 {[%emt 0:02:02]} Ke5 {[%emt 0:02:26]} 43. g5 {[%emt 0:01:35]} Ne1 {[%emt 0:01:41]} 44. Kf2 {[%emt 0:01:37]} Nxg2 {[%emt 0:00:50]} 45. Kxg2 {[%emt 0:00:01]} Be2 {[%emt 0:00:10]} 46. Na3 {[%emt 0:03:24]} Kd4 {[%emt 0:00:09]} 47. Kf2 {[%emt 0:00:15]} Bd3 {[%emt 0:00:07]} 48. Ke1 {[%emt 0:02:20]} Ke3 {[%emt 0:00:23]} 49. e5 {[%emt 0:00:08]} Kxf3 {[%emt 0:00:21]} 50. e6 {[%emt 0:00:11]} Kg2 {[%emt 0:00:08]} 51. e7 {[%emt 0:00:23]} Bg6 {[%emt 0:00:04]} 52. Kd2 {[%emt 0:02:29]} f3 {[%emt 0:00:13]} 0-1

[Event "BLR-ch U20 Boys 2021"]
[Site "Minsk"]
[Date "2021.04.21"]
[Round "6.1"]
[White "Zarubitski, Viachaslau"]
[Black "Silich, Yahor"]
[Result "1-0"]
[ECO "E73"]
[WhiteElo "2456"]
[BlackElo "2325"]
[Annotator "ChessBase"]
[PlyCount "49"]
[EventDate "2021.04.20"]
[EventType "tourn"]
[EventCountry "BLR"]
[SourceTitle "playchess.com"]
[Source "ChessBase"]
[SourceQuality "1"]
[TimeControl "40/5400+30:1800+30"]

1. d4 {[%emt 0:02:26]} Nf6 {[%emt 0:00:00]} 2. c4 {[%emt 0:00:06]} g6 {[%emt 0:00:00]} 3. Nc3 {[%emt 0:00:04]} Bg7 {[%emt 0:00:00]} 4. e4 {[%emt 0:00:08]} d6 {[%emt 0:00:03]} 5. Be2 {[%emt 0:00:09]} O-O {[%emt 0:00:07]} 6. h4 {[%emt 0:00:04]} Nc6 {[%emt 0:28:33]} 7. d5 {[%emt 0:01:38]} Ne5 {[%emt 0:00:10]} 8. h5 {[%emt 0:01:26]} e6 {[%emt 0:00:58]} 9. f4 {[%emt 0:22:23]} Ned7 {[%emt 0:00:52]} 10. dxe6 {[%emt 0:00:45]} fxe6 {[%emt 0:00:06]} 11. hxg6 {[%emt 0:00:08]} hxg6 {[%emt 0:00:09]} 12. Qd3 {[%emt 0:07:53]} e5 {[%emt 0:26:59]} 13. f5 {[%emt 0:10:20]} Nc5 {[%emt 0:01:11]} 14. Qh3 {[%emt 0:00:09]} Ncxe4 {[%emt 0:09:56]} 15. Nxe4 {[%emt 0:00:37]} Bxf5 {[%emt 0:00:06]} 16. Nxf6+ {[%emt 0:00:08]} Qxf6 {[%emt 0:00:02]} 17. g4 {[%emt 0:15:57]} Be4 {[%emt 0:02:25]} 18. Rh2 {[%emt 0:00:12]} g5 {[%emt 0:02:46]} 19. Nf3 {[%emt 0:11:12]} Bg6 {[%emt 0:00:03]} 20. Bxg5 {[%emt 0:04:33]} Qf7 {[%emt 0:01:51]} 21. Bh6 {[%emt 0:01:57]} e4 {[%emt 0:00:21]} 22. Ng5 {[%emt 0:00:11]} Qf6 {[%emt 0:00:10]} 23. Bxg7 {[%emt 0:00:32]} Qxg7 {[%emt 0:00:11]} 24. O-O-O {[%emt 0:01:29]} Rae8 {[%emt 0:00:06]} 25. c5 {[%emt 0:04:45]} 1-0

[Event "BLR-ch U20 Boys 2021"]
[Site "Minsk"]
[Date "2021.04.21"]
[Round "6.2"]
[White "Galkin, Gleb"]
[Black "Runets, Ivan"]
[Result "1-0"]
[ECO "E06"]
[WhiteElo "2225"]
[BlackElo "2257"]
[Annotator "NA"]
[PlyCount "63"]
[EventDate "2021.04.20"]
[EventType "tourn"]
[EventCountry "BLR"]
[SourceTitle "playchess.com"]
[Source "ChessBase"]
[SourceQuality "1"]
[TimeControl "40/5400+30:1800+30"]

1. d4 {[%emt 0:02:29]} Nf6 {[%emt 0:00:31]} 2. c4 {[%emt 0:00:04]} e6 {[%emt 0:00:03]} 3. Nf3 {[%emt 0:00:05]} d5 {[%emt 0:00:05]} 4. Nc3 {[%emt 0:00:05]} Be7 {[%emt 0:00:39]} 5. g3 {[%emt 0:00:28]} O-O {[%emt 0:01:33]} 6. Bg2 {[%emt 0:00:51]} dxc4 {[%emt 0:04:00]} 7. Ne5 {[%emt 0:00:16]} Nc6 {[%emt 0:03:42]} 8. Bxc6 {[%emt 0:00:09]} bxc6 {[%emt 0:00:04]} 9. Nxc6 {[%emt 0:00:03]} Qe8 {[%emt 0:00:12]} 10. Nxe7+ {[%emt 0:00:04]} Qxe7 {[%emt 0:00:06]} 11. Qa4 {[%emt 0:00:14]} e5 {[%emt 0:13:09]} 12. dxe5 {[%emt 0:01:21]} Qxe5 {[%emt 0:03:12]} 13. Qxc4 {[%emt 0:01:10]} Bh3 {[%emt 0:04:58]} 14. Bf4 {[%emt 0:07:46]} Qh5 {[%emt 0:06:13]} 15. O-O-O {[%emt 0:07:28]} Be6 {[%emt 0:00:06]} 16. Qc6 {[%emt 0:05:37]} Rab8 {[%emt 0:15:52]} 17. Be3 {[%emt 0:07:10]} Qa5 {[%emt 0:08:00]} 18. Rd4 {[%emt 0:16:52]} Rb6 {[%emt 0:13:41]} 19. Qa4 {[%emt 0:04:16]} Qa6 {[%emt 0:00:39]} 20. Rhd1 {[%emt 0:03:36]} Qc8 {[%emt 0:02:52]} 21. Qxa7 {[%emt 0:05:24]} Rb8 {[%emt 0:07:22]} 22. Bf4 {[%emt 0:07:26]} Rb7 {[%emt 0:02:46]} 23. Qa6 {[%emt 0:01:32]} Rb8 {[%emt 0:05:01]} 24. Qxc8 {[%emt 0:00:18]} Rbxc8 {[%emt 0:00:08]} 25. f3 {[%emt 0:03:01]} c6 {[%emt 0:02:25]} 26. e4 {[%emt 0:01:17]} Ra8 {[%emt 0:00:01]} 27. b3 {[%emt 0:01:03]} Rfc8 {[%emt 0:03:14]} 28. Na4 {[%emt 0:02:07]} c5 {[%emt 0:02:24]} 29. R4d2 {[%emt 0:00:46]} c4 {[%emt 0:00:54]} 30. Nb6 {[%emt 0:00:29]} cxb3+ {[%emt 0:00:26]} 31. Nxc8 {[%emt 0:00:06]} g5 {[%emt 0:00:38]} 32. Ne7+ {[%emt 0:01:33]} 1-0

[Event "BLR-ch U20 Boys 2021"]
[Site "Minsk"]
[Date "2021.04.21"]
[Round "6.3"]
[White "Bialiauski, Artsiom"]
[Black "Tsaruk, Maksim"]
[Result "0-1"]
[ECO "D02"]
[WhiteElo "2077"]
[BlackElo "2306"]
[Annotator "NA"]
[PlyCount "58"]
[EventDate "2021.04.20"]
[EventType "tourn"]
[EventCountry "BLR"]
[SourceTitle "playchess.com"]
[Source "ChessBase"]
[SourceQuality "1"]
[TimeControl "40/5400+30:1800+30"]

1. Nf3 {[%emt 0:00:00]} Nf6 {[%emt 0:00:39]} 2. g3 {[%emt 0:00:03]} Nc6 {[%emt 0:01:57]} 3. d4 {[%emt 0:04:16]} d5 {[%emt 0:00:09]} 4. Bg2 {[%emt 0:01:54]} Bf5 {[%emt 0:00:04]} 5. O-O {[%emt 0:08:33]} e6 {[%emt 0:00:04]} 6. c4 {[%emt 0:02:50]} Be7 {[%emt 0:00:05]} 7. Nc3 {[%emt 0:02:49]} dxc4 {[%emt 0:00:51]} 8. Ne5 {[%emt 0:03:29]} O-O {[%emt 0:06:17]} 9. Nxc6 {[%emt 0:10:23]} bxc6 {[%emt 0:00:07]} 10. Qa4 {[%emt 0:00:16]} Qxd4 {[%emt 0:05:20]} 11. Be3 {[%emt 0:07:21]} Qd6 {[%emt 0:17:25]} 12. Qxc6 {[%emt 0:12:43]} Rab8 {[%emt 0:12:29]} 13. Qxc4 {[%emt 0:10:10]} Rxb2 {[%emt 0:00:30]} 14. Rfd1 {[%emt 0:09:37]} Rb4 {[%emt 0:04:17]} 15. Rxd6 {[%emt 0:00:16]} Rxc4 {[%emt 0:00:06]} 16. Rc6 {[%emt 0:00:05]} Rxc6 {[%emt 0:00:13]} 17. Bxc6 {[%emt 0:00:03]} a6 {[%emt 0:02:39]} 18. f3 {[%emt 0:05:37]} e5 {[%emt 0:12:00]} 19. Nd5 {[%emt 0:06:27]} Nxd5 {[%emt 0:01:30]} 20. Bxd5 {[%emt 0:00:18]} Rb8 {[%emt 0:07:36]} 21. a4 {[%emt 0:04:25]} Rb1+ {[%emt 0:06:41]} 22. Rxb1 {[%emt 0:00:10]} Bxb1 {[%emt 0:00:04]} 23. Bd2 {[%emt 0:04:12]} Bc2 {[%emt 0:03:45]} 24. a5 {[%emt 0:00:40]} Ba4 {[%emt 0:00:11]} 25. Bc3 {[%emt 0:00:11]} c6 {[%emt 0:03:45]} 26. Bc4 {[%emt 0:02:14]} Bb5 {[%emt 0:00:17]} 27. Bxb5 {[%emt 0:00:04]} cxb5 {[%emt 0:00:04]} 28. Bxe5 {[%emt 0:00:06]} Bb4 {[%emt 0:00:13]} 29. Bc7 {[%emt 0:00:26]} Bd2 {[%emt 0:00:07]} 0-1

[Event "BLR-ch U20 Boys 2021"]
[Site "Minsk"]
[Date "2021.04.21"]
[Round "6.4"]
[White "Lazavik, Denis"]
[Black "Siniauski, Artsiom"]
[Result "1/2-1/2"]
[ECO "A30"]
[WhiteElo "2438"]
[BlackElo "2277"]
[Annotator "NA"]
[PlyCount "60"]
[EventDate "2021.04.20"]
[EventType "tourn"]
[EventCountry "BLR"]
[SourceTitle "playchess.com"]
[Source "ChessBase"]
[SourceQuality "1"]
[TimeControl "40/5400+30:1800+30"]

1. Nf3 {[%emt 0:00:00]} Nf6 {[%emt 0:00:00]} 2. c4 {[%emt 0:00:13]} e6 {[%emt 0:00:35]} 3. g3 {[%emt 0:00:53]} b6 {[%emt 0:02:08]} 4. Bg2 {[%emt 0:01:02]} Bb7 {[%emt 0:00:17]} 5. O-O {[%emt 0:00:57]} c5 {[%emt 0:00:46]} 6. Nc3 {[%emt 0:05:18]} Be7 {[%emt 0:02:09]} 7. Re1 {[%emt 0:07:51]} d5 {[%emt 0:13:59]} 8. cxd5 {[%emt 0:04:40]} Nxd5 {[%emt 0:00:29]} 9. Nxd5 {[%emt 0:22:35]} Qxd5 {[%emt 0:01:33]} 10. d4 {[%emt 0:04:58]} cxd4 {[%emt 0:04:46]} 11. Qxd4 {[%emt 0:00:34]} Qxd4 {[%emt 0:05:03]} 12. Nxd4 {[%emt 0:00:09]} Bxg2 {[%emt 0:00:08]} 13. Kxg2 {[%emt 0:00:08]} Nd7 {[%emt 0:00:45]} 14. Be3 {[%emt 0:03:42]} Bc5 {[%emt 0:08:57]} 15. Red1 {[%emt 0:08:57]} e5 {[%emt 0:15:26]} 16. Nf5 {[%emt 0:13:09]} g6 {[%emt 0:00:56]} 17. Bxc5 {[%emt 0:01:52]} Nxc5 {[%emt 0:00:15]} 18. Ne3 {[%emt 0:00:29]} Rd8 {[%emt 0:01:32]} 19. b4 {[%emt 0:05:19]} Ne6 {[%emt 0:17:30]} 20. Ng4 {[%emt 0:01:25]} Rd4 {[%emt 0:00:35]} 21. Nxe5 {[%emt 0:01:14]} Rxb4 {[%emt 0:00:12]} 22. a4 {[%emt 0:03:28]} Re4 {[%emt 0:02:10]} 23. Nc6 {[%emt 0:00:38]} Rxe2 {[%emt 0:00:38]} 24. a5 {[%emt 0:01:04]} bxa5 {[%emt 0:00:54]} 25. Rxa5 {[%emt 0:00:14]} O-O {[%emt 0:00:36]} 26. Rxa7 {[%emt 0:00:14]} Rc2 {[%emt 0:00:24]} 27. Nd4 {[%emt 0:00:18]} Nxd4 {[%emt 0:00:11]} 28. Rxd4 {[%emt 0:00:06]} Kg7 {[%emt 0:00:22]} 29. h4 {[%emt 0:00:10]} h5 {[%emt 0:00:10]} 30. Rf4 {[%emt 0:00:07]} Rc6 {[%emt 0:00:06]} 1/2-1/2